bitfinex/quotes_BTCUSD_20240908
["timestamp","ask_amount","ask_price","bid_price","bid_amount"]
[1725806751134,0.08308564,54350.0,54349.0,0.025]
[1725806751376,0.36563631,54350.0,54349.0,0.025]
[1725806752269,0.51283031,54350.0,54349.0,0.025]
[1725806752480,0.6975082,54350.0,54349.0,0.025]
[1725806752700,0.83458681,54350.0,54349.0,0.025]
[1725806753572,1.12897481,54350.0,54349.0,0.025]
[1725806753805,1.00784225,54350.0,54349.0,0.025]
[1725806755269,0.70465425,54350.0,54349.0,0.025]
[1725806755501,0.70465425,54350.0,54349.0,0.0861]
[1725806755950,0.99904225,54350.0,54349.0,0.0861]
[1725806757110,0.70465425,54350.0,54349.0,0.0861]
[1725806757336,0.99904225,54350.0,54349.0,0.0861]
[1725806758285,0.99904225,54350.0,54349.0,0.025]
[1725806758517,1.00784225,54350.0,54349.0,0.025]
[1725806758738,1.00507941,54350.0,54349.0,0.025]
[1725806759445,1.29946741,54350.0,54349.0,0.025]
[1725806759673,1.59918468,54350.0,54349.0,0.025]
[1725806759908,1.93750746,54350.0,54349.0,0.025]
[1725806760160,1.77299019,54350.0,54349.0,0.025]
[1725806760426,1.83862278,54350.0,54349.0,0.025]
[1725806760672,1.83862278,54350.0,54349.0,0.014]
[1725806760919,1.84062278,54350.0,54349.0,0.014]
[1725806761402,0.441639,54343.0,54342.0,0.001628]
[1725806761640,0.81080229,54343.0,54342.0,0.001628]
[1725806762378,0.441639,54343.0,54342.0,0.001628]
[1725806762608,0.39929319,54343.0,54342.0,0.001628]
[1725806762827,0.53643931,54343.0,54342.0,0.001628]
[1725806763289,0.39929319,54343.0,54342.0,0.001628]
[1725806764398,0.39929319,54343.0,54342.0,0.005628]
[1725806764620,0.39929319,54343.0,54342.0,0.001628]
[1725806765067,0.98814519,54343.0,54342.0,0.005628]
[1725806765301,1.16144852,54343.0,54342.0,0.013628]
[1725806765783,1.51958719,54343.0,54342.0,0.013628]
[1725806765991,1.51958719,54343.0,54342.0,0.005628]
[1725806766209,1.51958719,54343.0,54342.0,0.013628]
[1725806766473,0.98814519,54343.0,54342.0,0.013628]
[1725806766933,1.01024891,54343.0,54342.0,0.013628]
[1725806767163,1.01024891,54343.0,54342.0,0.009628]
[1725806767596,1.01224891,54343.0,54342.0,0.009628]
[1725806767823,1.01024891,54343.0,54342.0,0.009628]
[1725806768073,1.01024891,54343.0,54342.0,0.001628]
[1725806768280,1.01224891,54343.0,54342.0,0.001628]
[1725806769439,0.71782291,54343.0,54342.0,0.139028]
[1725806769908,0.71782291,54343.0,54342.0,0.140028]
[1725806770602,0.71582291,54343.0,54342.0,0.140028]
[1725806771038,0.71463307,54343.0,54342.0,0.144028]
[1725806771266,0.441639,54343.0,54342.0,0.144028]
[1725806771505,0.441639,54343.0,54342.0,0.143028]
[1725806771968,0.441639,54343.0,54342.0,0.151028]
[1725806772599,0.441639,54343.0,54342.0,0.143028]
[1725806772821,0.441639,54343.0,54342.0,0.149028]
[1725806773063,0.71462644,54343.0,54342.0,0.149028]
[1725806773316,0.441639,54343.0,54342.0,0.139028]
[1725806774735,0.441639,54343.0,54342.0,0.140028]
[1725806774952,0.441639,54343.0,54342.0,0.148028]
[1725806775243,0.441639,54343.0,54342.0,0.147028]
[1725806775467,0.441639,54343.0,54342.0,0.139028]
[1725806775916,0.441639,54343.0,54342.0,0.144028]
[1725806776323,0.441639,54343.0,54342.0,0.143028]
[1725806776699,0.441639,54343.0,54342.0,0.147028]
[1725806777708,0.441639,54343.0,54342.0,0.009628]
[1725806777709,0.736065,54343.0,54342.0,0.009628]
[1725806777942,0.744865,54343.0,54342.0,0.009628]
[1725806778159,0.744865,54343.0,54342.0,0.001628]
[1725806778160,1.009018,54343.0,54342.0,0.001628]
[1725806778526,1.12732292,54343.0,54342.0,0.006628]
[1725806778730,1.12732292,54343.0,54342.0,0.010628]
[1725806779156,1.12732292,54343.0,54342.0,0.001628]
[1725806779364,1.009018,54343.0,54342.0,0.009628]
[1725806779592,1.009018,54343.0,54342.0,0.013628]
[1725806779796,1.009018,54343.0,54342.0,0.009628]
[1725806779998,1.011018,54343.0,54342.0,0.001628]
[1725806781019,1.03986528,54343.0,54342.0,0.001628]
[1725806781435,1.03986528,54343.0,54342.0,0.002628]
[1725806782284,1.03986528,54343.0,54342.0,0.001628]
[1725806782494,1.03786528,54343.0,54342.0,0.002628]
[1725806782955,1.03986528,54343.0,54342.0,0.002628]
[1725806783398,1.19069643,54343.0,54342.0,0.002628]
[1725806785157,1.19069643,54343.0,54342.0,0.001628]
[1725806785622,1.18869643,54343.0,54342.0,0.002628]
[1725806786049,1.19069643,54343.0,54342.0,0.002628]
[1725806786676,1.18869643,54343.0,54342.0,0.001628]
[1725806786853,1.03786528,54343.0,54342.0,0.001628]
[1725806787098,1.03986528,54343.0,54342.0,0.002628]
[1725806788272,1.03986528,54343.0,54342.0,0.001628]
[1725806788749,1.03786528,54343.0,54342.0,0.002628]
[1725806789179,1.03986528,54343.0,54342.0,0.002628]
[1725806789362,1.03786528,54343.0,54342.0,0.002628]
[1725806789601,1.03786528,54343.0,54342.0,0.001628]
[1725806789811,1.03986528,54343.0,54342.0,0.001628]
[1725806789991,1.03986528,54343.0,54342.0,0.002628]
[1725806790201,1.03786528,54343.0,54342.0,0.002628]
[1725806790427,1.03786528,54343.0,54342.0,0.001628]
[1725806790637,1.03986528,54343.0,54342.0,0.001628]
[1725806790845,1.03786528,54343.0,54342.0,0.001628]
[1725806792361,1.03986528,54343.0,54342.0,0.001628]
[1725806792570,1.03786528,54343.0,54342.0,0.001628]
[1725806792798,0.74543928,54343.0,54342.0,0.002628]
[1725806793055,0.88237873,54343.0,54342.0,0.140428]
[1725806793338,0.74543928,54343.0,54342.0,0.139428]
[1725806793572,0.56058283,54343.0,54342.0,0.139428]
[1725806793791,0.5802921,54343.0,54342.0,0.140428]
[1725806794010,0.5822921,54343.0,54342.0,0.140428]
[1725806794222,0.5822921,54343.0,54342.0,0.139428]
[1725806794484,0.47272483,54343.0,54342.0,0.139428]
[1725806794710,0.58230798,54343.0,54342.0,0.148428]
[1725806794935,0.60968392,54343.0,54342.0,0.148428]
[1725806795380,0.47072483,54343.0,54342.0,0.148428]
[1725806795879,0.47072483,54343.0,54342.0,0.153428]
[1725806796102,0.47072483,54343.0,54342.0,0.148428]
[1725806796317,0.47072483,54343.0,54342.0,0.153428]
[1725806796765,0.47072483,54343.0,54342.0,0.144428]
[1725806797025,0.44187755,54343.0,54342.0,0.153428]
[1725806797712,0.44187755,54343.0,54342.0,0.1834933]
[1725806797936,0.5788947,54343.0,54342.0,0.1834933]
[1725806798167,0.5788947,54343.0,54342.0,0.153428]
[1725806798407,0.000815,54347.0,54342.0,0.300643]
[1725806798656,0.10959563,54343.0,54342.0,0.162843]
[1725806799095,0.10959563,54343.0,54342.0,0.598774]
[1725806799339,0.13699056,54345.0,54343.0,0.294426]
[1725806799340,0.10959563,54345.0,54343.0,0.294426]
[1725806799571,0.13699056,54346.0,54344.0,0.08865098]
[1725806799572,0.05480693,54346.0,54344.0,0.08865098]
[1725806799848,0.000815,54347.0,54346.0,0.288704]
[1725806800066,0.000815,54347.0,54346.0,0.35971179]
[1725806801211,0.000815,54347.0,54346.0,0.65412079]
[1725806801659,0.000815,54347.0,54346.0,0.35971179]
[1725806802336,0.0830254,54347.0,54346.0,0.35971179]
[1725806802769,0.0830254,54347.0,54346.0,0.36471179]
[1725806803451,0.08299679,54347.0,54346.0,0.36471179]
[1725806803690,0.08299679,54347.0,54346.0,0.35971179]
[1725806804126,0.08299679,54347.0,54346.0,0.37571179]
[1725806804557,0.05559449,54347.0,54346.0,0.37571179]
[1725806804785,0.000815,54347.0,54346.0,0.67012079]
[1725806805249,0.08299679,54347.0,54346.0,0.37571179]
[1725806805486,0.05558845,54347.0,54346.0,0.37571179]
[1725806805710,0.08299679,54347.0,54346.0,0.36571179]
[1725806805932,0.08299679,54347.0,54346.0,0.37871179]
[1725806806154,0.05558713,54347.0,54346.0,0.37271179]
[1725806806387,0.05558438,54347.0,54346.0,0.38071179]
[1725806807533,0.000815,54347.0,54346.0,0.38071179]
[1725806807942,0.05558438,54347.0,54346.0,0.23350779]
[1725806808156,0.08299679,54347.0,54346.0,0.38071179]
[1725806808377,0.08295953,54347.0,54346.0,0.309704]
[1725806808630,0.05557753,54347.0,54346.0,0.309704]
[1725806808839,0.08295953,54347.0,54346.0,0.309704]
[1725806809066,0.000815,54347.0,54346.0,0.309704]
[1725806809276,0.08295953,54347.0,54346.0,0.309704]
[1725806809699,0.000815,54347.0,54346.0,0.309704]
[1725806810152,0.05557186,54347.0,54346.0,0.309704]
[1725806810354,0.000815,54347.0,54346.0,0.309704]
[1725806810561,0.000815,54347.0,54346.0,0.4020208]
[1725806810811,0.000815,54347.0,54346.0,0.6964298]
[1725806811034,0.000815,54347.0,54346.0,1.0138388]
[1725806813745,0.09954443,54355.0,54346.0,0.2778168]
[1725806814020,0.20191536,54355.0,54351.0,0.14719]
[1725806814226,0.20191536,54355.0,54352.0,0.064]
[1725806814658,0.147181,54355.0,54352.0,0.064]
[1725806814871,0.20191536,54355.0,54352.0,0.064]
[1725806815083,0.20191536,54355.0,54353.0,0.0587383]
[1725806815346,0.147181,54355.0,54353.0,0.0587383]
[1725806816203,0.08439573,54356.0,54354.0,0.1458]
[1725806816416,0.02966137,54356.0,54355.0,0.064]
[1725806816641,0.02966137,54356.0,54355.0,0.063]
[1725806816852,0.02966137,54356.0,54355.0,0.09807263]
[1725806817063,0.00082,54356.0,54355.0,0.063]
[1725806817275,0.00082,54356.0,54355.0,0.062]
[1725806817944,0.147997,54356.0,54355.0,0.062]
[1725806819039,0.00082,54356.0,54355.0,0.062]
[1725806819272,0.00082,54356.0,54355.0,0.1205357]
[1725806819756,0.00082,54356.0,54355.0,0.1345357]
[1725806819978,0.00082,54356.0,54355.0,0.594341]
[1725806820193,0.00082,54356.0,54355.0,0.585341]
[1725806820419,0.37639214,54363.0,54357.0,0.064]
[1725806820420,0.147168,54360.0,54357.0,0.064]
[1725806820679,0.147168,54360.0,54357.0,0.1232336]
[1725806821576,0.14717,54359.0,54357.0,0.1232336]
[1725806821928,0.05471609,54362.0,54355.0,0.0958]
[1725806821929,0.147177,54356.0,54355.0,0.0958]
[1725806822165,1.041042,54356.0,54355.0,0.014]
[1725806822391,1.09573777,54356.0,54355.0,0.014]
[1725806822601,1.12311614,54356.0,54355.0,0.014]
[1725806823057,0.82876114,54356.0,54355.0,0.009]
[1725806823279,0.294373,54353.0,54349.0,0.0818]
[1725806823493,0.147193,54351.0,54350.0,0.0294631]
[1725806823921,0.147193,54351.0,54349.0,0.0818]
[1725806824575,0.147193,54351.0,54349.0,0.0908]
[1725806825030,0.147193,54351.0,54349.0,0.0818]
[1725806826165,0.147194,54350.0,54349.0,0.0818]
[1725806826392,0.147194,54350.0,54349.0,0.0848]
[1725806826639,0.147194,54350.0,54349.0,0.0918]
[1725806826857,0.147194,54350.0,54349.0,0.0888]
[1725806827042,0.147194,54350.0,54349.0,0.0918]
[1725806827324,0.147194,54350.0,54349.0,0.0818]
[1725806827847,0.147194,54350.0,54349.0,0.0858]
[1725806828032,0.294373,54353.0,54349.0,0.0938]
[1725806828283,0.294373,54353.0,54350.0,0.0306634]
[1725806828284,0.147193,54351.0,54350.0,0.0306634]
[1725806829150,0.14719,54352.0,54350.0,0.0306634]
[1725806829627,0.147186,54353.0,54350.0,0.0306634]
[1725806829867,0.20186996,54356.0,54354.0,0.064]
[1725806830502,0.0835312,54359.0,54355.0,0.1458]
[1725806830731,0.000815,54360.0,54358.0,0.147171]
[1725806830980,0.000815,54360.0,54359.0,0.1899532]
[1725806831458,0.000815,54360.0,54359.0,0.3371222]
[1725806831907,0.000815,54360.0,54359.0,0.3361222]
[1725806833948,0.001815,54360.0,54359.0,0.3361222]
[1725806834611,0.000815,54360.0,54359.0,0.3501222]
[1725806834878,0.000815,54360.0,54359.0,0.3601222]
[1725806835323,0.000815,54360.0,54359.0,0.3461222]
[1725806835759,0.000815,54360.0,54359.0,0.1989532]
[1725806837339,0.000815,54360.0,54359.0,0.1889532]
[1725806837574,0.000815,54360.0,54359.0,0.2129532]
[1725806837988,0.000815,54360.0,54359.0,0.1989532]
[1725806838423,0.000815,54360.0,54359.0,0.3601222]
[1725806841105,0.00082,54364.0,54359.0,0.59594318]
[1725806841371,0.16415335,54372.0,54359.0,0.59594318]
[1725806841372,0.05475363,54379.0,54378.0,0.147118]
[1725806841593,0.20266963,54383.0,54378.0,0.0631]
[1725806841853,0.147115,54379.0,54378.0,0.0631]
[1725806842070,0.147119,54378.0,54375.0,0.1395]
[1725806842302,0.34897463,54381.0,54375.0,0.168163]
[1725806842530,0.147116,54379.0,54375.0,0.1395]
[1725806842759,0.05556363,54383.0,54375.0,0.286626]
[1725806842760,0.147112,54380.0,54375.0,0.286626]
[1725806844099,0.02882635,54379.0,54375.0,0.286626]
[1725806844576,0.02882635,54379.0,54378.0,0.009]
[1725806844826,0.147112,54380.0,54378.0,0.009]
[1725806845112,0.02882592,54379.0,54375.0,0.290626]
[1725806845366,0.02882592,54379.0,54375.0,0.299626]
[1725806845608,0.02882592,54379.0,54375.0,0.295626]
[1725806845836,0.02882592,54379.0,54375.0,0.291626]
[1725806846085,0.294237,54378.0,54375.0,0.1445]
[1725806846375,0.02882592,54379.0,54375.0,0.005]
[1725806846574,0.147122,54377.0,54375.0,0.005]
[1725806846810,0.147123,54376.0,54375.0,0.005]
[1725806847046,0.294242,54377.0,54375.0,0.005]
[1725806847507,0.147123,54376.0,54375.0,0.005]
[1725806847744,0.147126,54375.0,54372.0,0.0631]
[1725806848887,0.147123,54377.0,54372.0,0.0631]
[1725806849117,0.147123,54377.0,54372.0,0.210233]
[1725806849370,0.147123,54377.0,54372.0,0.220233]
[1725806850057,0.147123,54377.0,54372.0,0.2793245]
[1725806850490,0.147124,54376.0,54372.0,0.2793245]
[1725806850713,0.147124,54376.0,54372.0,0.2693245]
[1725806851164,0.147124,54376.0,54372.0,0.2903245]
[1725806851425,0.147124,54376.0,54372.0,0.2823245]
[1725806851628,0.147124,54376.0,54372.0,0.2693245]
[1725806851857,0.32306569,54378.0,54372.0,0.210233]
[1725806852074,0.147121,54377.0,54372.0,0.231233]
[1725806852288,0.147124,54376.0,54372.0,0.231233]
[1725806852495,0.32306569,54378.0,54372.0,0.231233]
[1725806852804,0.147121,54377.0,54372.0,0.222233]
[1725806853046,0.147121,54377.0,54372.0,0.2824245]
[1725806853689,0.147121,54377.0,54373.0,0.147131]
[1725806855011,0.17594769,54378.0,54374.0,0.147128]
[1725806855247,0.147121,54377.0,54373.0,0.019]
[1725806855480,0.147124,54376.0,54374.0,0.0599896]
[1725806856824,0.02882769,54378.0,54373.0,0.019]
[1725806856825,0.294244,54377.0,54373.0,0.019]
[1725806857073,0.441387,54374.0,54373.0,0.008]
[1725806857509,0.294249,54376.0,54370.0,0.147139]
[1725806857737,0.147129,54374.0,54370.0,0.147139]
[1725806858421,0.147129,54374.0,54373.0,0.007]
[1725806858638,0.147129,54374.0,54373.0,0.01]
[1725806859154,0.441387,54374.0,54373.0,0.01]
[1725806859370,0.147134,54373.0,54369.0,0.20714]
[1725806860019,0.441418,54370.0,54369.0,0.06]
[1725806860239,0.0441383,54373.0,54364.0,0.0769]
[1725806860240,0.294296,54367.0,54364.0,0.0769]
[1725806860493,0.147156,54364.0,54363.0,0.06]
[1725806860963,0.441468,54364.0,54363.0,0.06]
[1725806861177,0.147156,54364.0,54363.0,0.06]
[1725806861406,0.294303,54366.0,54363.0,0.06]
[1725806861638,0.147156,54364.0,54363.0,0.06]
[1725806862108,0.147156,54364.0,54363.0,0.074]
[1725806862329,0.147156,54364.0,54363.0,0.088]
[1725806862572,0.147156,54364.0,54363.0,0.06]
[1725806862779,0.147156,54364.0,54363.0,0.073]
[1725806863451,0.441456,54366.0,54363.0,0.073]
[1725806863667,0.29429,54369.0,54363.0,0.073]
[1725806863886,0.0546585,54371.0,54363.0,0.1175862]
[1725806864135,0.147143,54369.0,54364.0,0.224054]
[1725806864341,0.147143,54369.0,54365.0,0.147152]
[1725806865232,0.147137,54371.0,54366.0,0.207149]
[1725806865498,0.14714,54370.0,54366.0,0.207149]
[1725806866583,0.44141,54372.0,54366.0,0.207149]
[1725806866809,0.147137,54371.0,54366.0,0.207149]
[1725806867032,0.147137,54371.0,54367.0,0.147147]
[1725806867273,0.294273,54372.0,54366.0,0.06]
[1725806867507,0.0546585,54373.0,54366.0,0.06]
[1725806867723,0.147147,54368.0,54366.0,0.06]
[1725806868127,0.147147,54368.0,54366.0,0.066]
[1725806868387,0.147147,54368.0,54366.0,0.065]
[1725806868597,0.147142,54370.0,54366.0,0.0940055]
[1725806868776,0.147143,54369.0,54366.0,0.0890055]
[1725806869012,0.147143,54369.0,54366.0,0.067]
[1725806869233,0.147143,54369.0,54367.0,0.0769]
[1725806869668,0.147139,54371.0,54367.0,0.0769]
[1725806869858,0.14714,54370.0,54368.0,0.06]
[1725806870096,0.294269,54372.0,54368.0,0.06]
[1725806870097,0.147142,54369.0,54368.0,0.06]
[1725806871888,0.0554735,54374.0,54372.0,0.0769]
[1725806872099,0.000815,54374.0,54373.0,0.207131]
[1725806872769,0.000815,54374.0,54373.0,0.26329167]
[1725806873455,0.000815,54374.0,54373.0,0.06]
[1725806874097,0.000815,54374.0,54373.0,0.207131]
[1725806874936,0.000815,54374.0,54373.0,0.217131]
[1725806875159,0.000815,54374.0,54373.0,0.07]
[1725806875395,0.000815,54374.0,54373.0,0.224131]
[1725806875600,0.000815,54374.0,54373.0,0.207131]
[1725806875817,0.000815,54374.0,54373.0,0.213131]
[1725806876260,0.000815,54374.0,54373.0,0.207131]
[1725806876470,0.08280275,54374.0,54373.0,0.214131]
[1725806876899,0.08280275,54374.0,54373.0,0.207131]
[1725806877115,0.08280275,54374.0,54373.0,0.213131]
[1725806877331,0.08280275,54374.0,54373.0,0.223131]
[1725806877541,0.08280275,54374.0,54373.0,0.2815625]
[1725806877752,0.08280275,54374.0,54373.0,0.2715625]
[1725806878225,0.08280275,54374.0,54373.0,0.2815625]
[1725806878908,0.08309251,54374.0,54373.0,0.2815625]
[1725806880524,0.000815,54374.0,54373.0,1.10555567]
[1725806880749,0.000815,54374.0,54373.0,1.04712417]
[1725806880967,0.000815,54374.0,54373.0,1.05712417]
[1725806881457,0.000815,54374.0,54373.0,1.04712417]
[1725806881667,0.000815,54374.0,54373.0,1.04112417]
[1725806881877,0.000815,54374.0,54373.0,0.888957]
[1725806882105,0.000815,54374.0,54373.0,0.902957]
[1725806882315,0.000815,54374.0,54373.0,0.888957]
[1725806883205,0.000815,54374.0,54373.0,0.902957]
[1725806883444,0.000815,54374.0,54373.0,0.888957]
[1725806884113,0.000815,54374.0,54373.0,0.874957]
[1725806884628,0.000815,54374.0,54373.0,0.888957]
[1725806885271,0.000815,54374.0,54373.0,0.874957]
[1725806885481,0.000815,54374.0,54373.0,0.902957]
[1725806885953,0.000815,54374.0,54373.0,0.874957]
[1725806886187,0.000815,54374.0,54373.0,0.888957]
[1725806886625,0.000815,54374.0,54373.0,0.874957]
[1725806886842,0.000815,54374.0,54373.0,0.888957]
[1725806887542,0.000815,54374.0,54373.0,0.902957]
[1725806888007,0.000815,54374.0,54373.0,0.888957]
[1725806888228,0.000815,54374.0,54373.0,0.874957]
[1725806888494,0.000815,54374.0,54373.0,0.888957]
[1725806888715,0.000815,54374.0,54373.0,0.1673]
[1725806888932,0.000815,54374.0,54373.0,0.314431]
[1725806889165,0.000815,54374.0,54373.0,0.300431]
[1725806889382,0.000815,54374.0,54373.0,0.608694]
[1725806889603,0.000815,54374.0,54373.0,0.300431]
[1725806889958,0.000815,54374.0,54373.0,0.594694]
[1725806890172,0.000815,54374.0,54373.0,0.608694]
[1725806890431,0.000815,54374.0,54373.0,0.594694]
[1725806890888,0.000815,54374.0,54373.0,0.608694]
[1725806897986,0.23026394,54374.0,54373.0,0.028]
[1725806898209,0.25770393,54374.0,54373.0,0.028]
[1725806898448,0.82556,54374.0,54373.0,0.028]
[1725806898719,1.448323,54374.0,54373.0,0.028]
[1725806898966,1.77425918,54374.0,54373.0,0.028]
[1725806899202,1.61296289,54374.0,54373.0,0.028]
[1725806899419,1.448323,54374.0,54373.0,0.014]
[1725806899861,0.147144,54369.0,54365.0,0.001628]
[1725806900086,0.08236863,54367.0,54365.0,0.001628]
[1725806900555,0.08236863,54367.0,54366.0,0.28555]
[1725806900768,0.08236863,54368.0,54366.0,0.1384]
[1725806900994,0.05491203,54367.0,54366.0,0.28555]
[1725806901216,0.05491203,54367.0,54366.0,0.579851]
[1725806901648,0.17596687,54371.0,54366.0,0.28555]
[1725806901887,0.05490914,54367.0,54366.0,0.29955]
[1725806902329,0.05490914,54367.0,54366.0,0.30855]
[1725806902569,0.05490914,54367.0,54366.0,0.29955]
[1725806903046,0.05490914,54367.0,54366.0,0.30655]
[1725806903268,0.05490914,54367.0,54366.0,0.29255]
[1725806903477,0.05490914,54367.0,54366.0,0.30455]
[1725806903692,0.10981828,54370.0,54366.0,0.30455]
[1725806903693,0.05490914,54368.0,54366.0,0.29755]
[1725806903900,0.05490914,54368.0,54366.0,0.28555]
[1725806904324,0.20204914,54370.0,54366.0,0.29955]
[1725806904759,0.05490914,54369.0,54366.0,0.29955]
[1725806904970,0.05490914,54368.0,54366.0,0.28555]
[1725806905180,0.05490914,54368.0,54366.0,0.29655]
[1725806905418,0.05490914,54368.0,54366.0,0.1494]
[1725806905650,0.05490914,54368.0,54366.0,0.1384]
[1725806905867,0.05490914,54368.0,54366.0,0.1464]
[1725806906297,0.05442107,54368.0,54366.0,0.1524]
[1725806906737,0.05442107,54368.0,54366.0,0.1384]
[1725806907174,0.05442107,54368.0,54366.0,0.1624]
[1725806908017,0.05442107,54368.0,54366.0,0.30955]
[1725806908259,0.05442107,54368.0,54367.0,0.147148]
[1725806908488,0.05442107,54368.0,54366.0,0.1624]
[1725806909403,0.08240629,54372.0,54366.0,0.1624]
[1725806909620,0.14714,54370.0,54366.0,0.1624]
[1725806909833,0.14714,54370.0,54366.0,0.1484]
[1725806910276,0.14714,54370.0,54367.0,0.014]
[1725806910785,0.14714,54370.0,54367.0,0.0595497]
[1725806911702,0.14714,54370.0,54366.0,0.28555]
[1725806911910,0.14714,54370.0,54367.0,0.011]
[1725806913221,0.14714,54370.0,54366.0,0.28555]
[1725806913439,0.14714,54370.0,54367.0,0.008]
[1725806914289,0.14714,54370.0,54367.0,0.011]
[1725806915714,0.08240629,54371.0,54367.0,0.011]
[1725806915941,0.08240629,54370.0,54367.0,0.011]
[1725806916368,0.08240629,54370.0,54367.0,0.019]
[1725806916369,0.22953339,54370.0,54367.0,0.019]
[1725806916784,0.22953339,54370.0,54366.0,0.28555]
[1725806917003,0.22953339,54370.0,54367.0,0.007]
[1725806917206,0.22953339,54370.0,54367.0,0.01]
[1725806917416,0.08239239,54370.0,54367.0,0.165147]
[1725806917625,0.08239239,54371.0,54367.0,0.155147]
[1725806917837,0.22952939,54371.0,54367.0,0.155147]
[1725806919416,0.08239239,54369.0,54368.0,0.441435]
[1725806919638,0.05492365,54369.0,54368.0,0.523635]
[1725806919860,0.05492365,54369.0,54368.0,0.817925]
[1725806920064,0.08239239,54371.0,54369.0,0.294285]
[1725806920285,0.08239239,54371.0,54370.0,0.147139]
[1725806920502,0.45169664,54371.0,54370.0,0.147139]
[1725806920708,0.1098319,54371.0,54370.0,0.147139]
[1725806920924,0.10984823,54371.0,54370.0,0.147139]
[1725806921127,0.10984726,54371.0,54370.0,0.147139]
[1725806921368,0.34201628,54371.0,54370.0,0.147139]
[1725806921797,0.10984613,54371.0,54370.0,0.157139]
[1725806922010,0.13812408,54371.0,54370.0,0.01]
[1725806922231,0.48014036,54371.0,54370.0,0.01]
[1725806922904,0.48013295,54371.0,54370.0,0.017]
[1725806923143,0.34283128,54371.0,54370.0,0.017]
[1725806923352,0.48014016,54371.0,54370.0,0.017]
[1725806923791,0.48012888,54371.0,54370.0,0.017]
[1725806924021,0.48013265,54371.0,54370.0,0.017]
[1725806924726,0.08237765,54372.0,54370.0,0.017]
[1725806924958,0.08237765,54371.0,54370.0,0.017]
[1725806925623,0.08237765,54372.0,54370.0,0.01]
[1725806926162,0.0823744,54371.0,54370.0,0.0750871]
[1725806926371,0.0823744,54371.0,54370.0,0.0700871]
[1725806926585,0.0823744,54371.0,54370.0,0.0770871]
[1725806926817,0.25696553,54373.0,54368.0,0.294943]
[1725806927029,0.05491647,54369.0,54368.0,0.294943]
[1725806927494,0.05491922,54369.0,54368.0,0.294943]
[1725806927709,0.08237418,54371.0,54368.0,0.0656]
[1725806927710,0.08237418,54370.0,54368.0,0.0656]
[1725806928176,0.05491854,54369.0,54367.0,0.00163]
[1725806928391,0.05492027,54368.0,54367.0,0.00163]
[1725806929728,0.05492027,54369.0,54367.0,0.00663]
[1725806929928,0.14714,54370.0,54367.0,0.00663]
[1725806929929,0.05492027,54368.0,54367.0,0.00163]
[1725806930138,0.05492027,54368.0,54367.0,0.01163]
[1725806931021,0.05492027,54368.0,54367.0,0.02063]
[1725806931453,0.05492027,54368.0,54367.0,0.01163]
[1725806931876,0.05492027,54368.0,54367.0,0.02563]
[1725806932519,0.147142,54369.0,54367.0,0.02563]
[1725806932724,0.22951618,54369.0,54367.0,0.02563]
[1725806932932,0.05492855,54368.0,54367.0,0.02563]
[1725806933138,0.05492854,54368.0,54367.0,0.02563]
[1725806933345,0.147145,54368.0,54367.0,0.02563]
[1725806933624,0.441435,54368.0,54367.0,0.01563]
[1725806933833,0.441435,54368.0,54367.0,0.02463]
[1725806934256,0.441435,54368.0,54367.0,0.01563]
[1725806934469,0.441435,54368.0,54367.0,0.00163]
[1725806934681,0.57872567,54368.0,54367.0,0.02463]
[1725806935332,0.57872567,54368.0,54367.0,0.01163]
[1725806935783,0.57872567,54368.0,54367.0,0.02563]
[1725806938087,0.10989801,54368.0,54367.0,0.1975116]
[1725806938301,0.08243621,54369.0,54368.0,0.147145]
[1725806938515,0.08243621,54370.0,54369.0,0.1478]
[1725806938748,0.08243621,54370.0,54369.0,0.35326831]
[1725806939229,0.08243621,54370.0,54369.0,0.20612631]
[1725806939444,0.10989801,54370.0,54369.0,0.14564214]
[1725806939654,0.13729067,54370.0,54369.0,0.14564214]
[1725806939860,0.42415429,54370.0,54369.0,0.14564214]
[1725806940109,0.42415429,54370.0,54368.0,0.009]
[1725806940110,0.71843329,54370.0,54368.0,0.009]
[1725806940352,0.147145,54368.0,54367.0,0.00163]
[1725806940593,0.56903612,54368.0,54367.0,0.00163]
[1725806940804,0.28441837,54368.0,54367.0,0.00163]
[1725806941009,0.42189112,54368.0,54367.0,0.00163]
[1725806941247,0.28441837,54368.0,54367.0,0.00163]
[1725806941474,0.42189112,54368.0,54367.0,0.00163]
[1725806941682,1.15761612,54368.0,54367.0,0.00163]
[1725806941890,1.31443337,54368.0,54367.0,0.00163]
[1725806942317,1.31443337,54368.0,54367.0,0.00963]
[1725806943141,1.31443337,54368.0,54367.0,0.01963]
[1725806943370,1.47940067,54368.0,54367.0,0.00963]
[1725806943590,1.73537547,54368.0,54367.0,0.00963]
[1725806943822,1.93673957,54368.0,54367.0,0.00263]
[1725806944045,1.93673957,54368.0,54367.0,0.00663]
[1725806944260,2.12239054,54368.0,54367.0,0.00663]
[1725806944485,2.12639054,54368.0,54367.0,0.00663]
[1725806944709,2.12639054,54368.0,54367.0,0.00163]
[1725806944710,1.94073957,54368.0,54367.0,0.00163]
[1725806944931,1.94373957,54368.0,54367.0,0.00163]
[1725806945401,1.77766477,54368.0,54367.0,0.00163]
[1725806945820,1.77966477,54368.0,54367.0,0.00163]
[1725806946972,1.78366477,54368.0,54367.0,0.00263]
[1725806947183,1.78366477,54368.0,54367.0,0.00163]
[1725806947184,2.18395477,54368.0,54367.0,0.00163]
[1725806947396,2.18895477,54368.0,54367.0,0.00163]
[1725806947618,2.37393784,54368.0,54367.0,0.00163]
[1725806948544,2.56133024,54368.0,54367.0,0.00163]
[1725806948773,1.030053,54366.0,54365.0,0.00048761]
[1725806948987,1.78080277,54366.0,54365.0,0.00048761]
[1725806950520,1.78480277,54366.0,54365.0,0.00048761]
[1725806950668,1.96978584,54366.0,54365.0,0.00048761]
[1725806951083,1.97978584,54366.0,54365.0,0.00048761]